[Event "Live Chess"]
[Site "Chess.com"]
[Date "2024.06.01"]
[Round "-"]
[White "resipsa6"]
[Black "Bradfield133"]
[Result "0-1"]
[WhiteElo "2047"]
[BlackElo "2053"]
[TimeControl "300"]
[EndTime "9:21:46 PDT"]
[Termination "Bradfield133 won by resignation"]

1. e4 {[%clk 0:04:59.1]} 1... c5 {[%clk 0:04:58.1]} 2. Nf3 {[%clk 0:04:57.7]}
2... Nc6 {[%clk 0:04:56.8]} 3. d4 {[%clk 0:04:56.9]} 3... cxd4 {[%clk
0:04:55.8]} 4. Nxd4 {[%clk 0:04:56.2]} 4... g6 {[%clk 0:04:53.7]} 5. Nc3 {[%clk
0:04:54.9]} 5... Bg7 {[%clk 0:04:50.8]} 6. Be3 {[%clk 0:04:54.1]} 6... Nf6
{[%clk 0:04:48.3]} 7. f3 {[%clk 0:04:53.2]} 7... O-O {[%clk 0:04:43]} 8. Be2
{[%clk 0:04:52.4]} 8... d5 {[%clk 0:04:35.2]} 9. Nxc6 {[%clk 0:04:49.2]} 9...
bxc6 {[%clk 0:04:34]} 10. exd5 {[%clk 0:04:47.2]} 10... Nxd5 {[%clk 0:04:31]}
11. Nxd5 {[%clk 0:04:46.4]} 11... cxd5 {[%clk 0:04:21.9]} 12. c3 {[%clk
0:04:45.4]} 12... Rb8 {[%clk 0:04:11.9]} 13. Qd2 {[%clk 0:04:23.9]} 13... Qc7
{[%clk 0:03:58.6]} 14. O-O {[%clk 0:04:20]} 14... Rd8 {[%clk 0:03:49.6]} 15. Bf4
{[%clk 0:04:08.1]} 15... e5 {[%clk 0:03:47.4]} 16. Bh6 {[%clk 0:04:07.1]} 16...
Bxh6 {[%clk 0:03:42]} 17. Qxh6 {[%clk 0:04:07]} 17... Qb6+ {[%clk 0:03:40.6]}
18. Kh1 {[%clk 0:04:04.5]} 18... Qxb2 {[%clk 0:03:39]} 19. Rfe1 {[%clk
0:03:41.8]} 19... Qxc3 {[%clk 0:03:31.1]} 20. h4 {[%clk 0:03:38]} 20... e4
{[%clk 0:03:21.8]} 21. fxe4 {[%clk 0:03:31.7]} 21... dxe4 {[%clk 0:03:19.2]} 22.
h5 {[%clk 0:03:29]} 22... Rb2 {[%clk 0:02:59.2]} 23. hxg6 {[%clk 0:03:22]} 23...
hxg6 {[%clk 0:02:54.5]} 24. Bh5 {[%clk 0:03:12.8]} 24... Qh8 {[%clk 0:02:48.5]}
25. Qxh8+ {[%clk 0:03:01.1]} 25... Kxh8 {[%clk 0:02:47.2]} 26. Be2 {[%clk
0:02:55]} 26... Rdd2 {[%clk 0:02:39.4]} 27. Bf1 {[%clk 0:02:54.3]} 27... f5
{[%clk 0:02:35.2]} 28. Rac1 {[%clk 0:02:51.5]} 28... Be6 {[%clk 0:02:16.3]} 29.
Rc6 {[%clk 0:02:41.5]} 29... Bf7 {[%clk 0:02:07.4]} 30. Rf6 {[%clk 0:02:39.9]}
30... Kg7 {[%clk 0:02:06]} 31. Ra6 {[%clk 0:02:38.3]} 31... Rxa2 {[%clk
0:02:03.1]} 32. Rc6 {[%clk 0:02:37.1]} 32... Rd7 {[%clk 0:01:41.3]} 33. Rb1
{[%clk 0:02:30.7]} 33... a5 {[%clk 0:01:34.1]} 34. Bc4 {[%clk 0:02:26.1]} 34...
Bxc4 {[%clk 0:01:30.4]} 35. Rxc4 {[%clk 0:02:26]} 35... Rdd2 {[%clk 0:01:23.2]}
36. Rc7+ {[%clk 0:02:24.7]} 36... Kh6 {[%clk 0:01:22]} 37. Rc6 {[%clk
0:02:07.4]} 37... Rxg2 {[%clk 0:01:11.5]} 38. Rbb6 {[%clk 0:02:06.9]} 38... e3
{[%clk 0:01:05.8]} 39. Rb7 {[%clk 0:01:54.4]} 39... e2 {[%clk 0:00:58.4]} 40.
Rxg6+ {[%clk 0:01:50.1]} 40... Rxg6 {[%clk 0:00:55.5]} 41. Rb1 {[%clk
0:01:48.3]} 41... Rd2 {[%clk 0:00:50.4]} 0-1

[Event "Live Chess"]
[Site "Chess.com"]
[Date "2024.06.01"]
[Round "-"]
[White "TheSmoulderingMaster"]
[Black "GeorgianaMorea"]
[Result "1-0"]
[WhiteElo "1744"]
[BlackElo "1982"]
[TimeControl "300"]
[EndTime "9:21:47 PDT"]
[Termination "TheSmoulderingMaster won by resignation"]

1. e4 {[%clk 0:04:45.8]} 1... c5 {[%clk 0:04:59]} 2. Nf3 {[%clk 0:04:44]} 2...
e6 {[%clk 0:04:58.3]} 3. d4 {[%clk 0:04:43.3]} 3... cxd4 {[%clk 0:04:57.7]} 4.
Nxd4 {[%clk 0:04:42.8]} 4... a6 {[%clk 0:04:57.2]} 5. Nc3 {[%clk 0:04:42]} 5...
Qc7 {[%clk 0:04:56.2]} 6. Be3 {[%clk 0:04:41.1]} 6... Bb4 {[%clk 0:04:53.1]} 7.
Bd2 {[%clk 0:04:38.7]} 7... Nf6 {[%clk 0:04:47.3]} 8. Bd3 {[%clk 0:04:36.2]}
8... Nc6 {[%clk 0:04:43.6]} 9. Nb3 {[%clk 0:04:32.7]} 9... O-O {[%clk
0:04:40.4]} 10. O-O {[%clk 0:04:31.8]} 10... b5 {[%clk 0:04:33.5]} 11. Kh1
{[%clk 0:04:27.5]} 11... Bb7 {[%clk 0:04:32]} 12. f4 {[%clk 0:04:26.2]} 12... d6
{[%clk 0:04:30.8]} 13. Qf3 {[%clk 0:04:10.6]} 13... d5 {[%clk 0:04:13.3]} 14. e5
{[%clk 0:04:09.1]} 14... Ne8 {[%clk 0:04:03.4]} 15. Qh5 {[%clk 0:04:07.2]} 15...
f5 {[%clk 0:03:57.9]} 16. exf6 {[%clk 0:04:05.3]} 16... Nxf6 {[%clk 0:03:56.8]}
17. Qh4 {[%clk 0:04:03.3]} 17... Be7 {[%clk 0:03:47.7]} 18. Rae1 {[%clk
0:03:59.8]} 18... Qd6 {[%clk 0:03:40.4]} 19. Rf3 {[%clk 0:03:46.6]} 19... Rfe8
{[%clk 0:03:04.6]} 20. Rh3 {[%clk 0:03:44]} 20... h6 {[%clk 0:02:43]} 21. Qg3
{[%clk 0:03:35.6]} 21... Kh8 {[%clk 0:02:22.4]} 22. Qg6 {[%clk 0:03:24.1]} 22...
Bc8 {[%clk 0:01:04.4]} 23. Ree3 {[%clk 0:03:19.2]} 23... e5 {[%clk 0:01:02.6]}
24. Reg3 {[%clk 0:03:13.5]} 24... Bf8 {[%clk 0:00:53.9]} 25. Nxd5 {[%clk
0:02:35.1]} 25... Ne7 {[%clk 0:00:36.3]} 26. Rxh6+ {[%clk 0:02:25.3]} 26... gxh6
{[%clk 0:00:33.9]} 27. Qxf6+ {[%clk 0:02:19.1]} 27... Qxf6 {[%clk 0:00:32.7]}
28. Nxf6 {[%clk 0:02:18.2]} 28... Bg7 {[%clk 0:00:30]} 29. Nxe8 {[%clk
0:02:14.9]} 29... exf4 {[%clk 0:00:29.9]} 30. Bxf4 {[%clk 0:02:13.1]} 30... Bxb2
{[%clk 0:00:27.5]} 31. Be4 {[%clk 0:02:12]} 31... Ra7 {[%clk 0:00:24.8]} 32. Bd6
{[%clk 0:02:10.2]} 32... Bf6 {[%clk 0:00:15.5]} 33. Nxf6 {[%clk 0:02:05.9]} 1-0

[Event "Live Chess"]
[Site "Chess.com"]
[Date "2024.06.01"]
[Round "-"]
[White "willc-h99"]
[Black "jimwad"]
[Result "1-0"]
[WhiteElo "2667"]
[BlackElo "1223"]
[TimeControl "300"]
[EndTime "9:21:49 PDT"]
[Termination "willc-h99 won by resignation"]

1. d4 {[%clk 0:04:56.6]} 1... d5 {[%clk 0:04:59]} 2. Bg5 {[%clk 0:04:53.3]} 2...
Nf6 {[%clk 0:04:54.1]} 3. Bxf6 {[%clk 0:04:51]} 3... exf6 {[%clk 0:04:53.1]} 4.
e3 {[%clk 0:04:50.3]} 4... Nc6 {[%clk 0:04:51.6]} 5. a3 {[%clk 0:04:27.4]} 5...
Bd7 {[%clk 0:04:50.2]} 6. c4 {[%clk 0:04:26.2]} 6... dxc4 {[%clk 0:04:48.6]} 7.
Bxc4 {[%clk 0:04:24.4]} 7... Be7 {[%clk 0:04:45.5]} 8. Nc3 {[%clk 0:04:20.6]}
8... O-O {[%clk 0:04:43.5]} 9. Nge2 {[%clk 0:04:17.2]} 9... a6 {[%clk
0:04:41.1]} 10. O-O {[%clk 0:04:15.4]} 10... b5 {[%clk 0:04:39.7]} 11. Bd3
{[%clk 0:04:10.7]} 11... Na7 {[%clk 0:04:24.1]} 12. Rc1 {[%clk 0:04:07.6]} 12...
c5 {[%clk 0:04:22.9]} 13. dxc5 {[%clk 0:04:03.5]} 13... Bxc5 {[%clk 0:04:21.7]}
14. Ne4 {[%clk 0:04:00.6]} 14... Be7 {[%clk 0:04:11]} 15. Nd4 {[%clk 0:03:57.6]}
15... Rc8 {[%clk 0:04:06]} 16. Qf3 {[%clk 0:03:50.8]} 16... Ra8 {[%clk
0:04:00.1]} 17. Rfd1 {[%clk 0:03:39]} 17... Rc8 {[%clk 0:03:58.2]} 18. Rxc8
{[%clk 0:03:30.1]} 18... Nxc8 {[%clk 0:03:55.9]} 19. Ng3 {[%clk 0:03:16.7]}
19... Nd6 {[%clk 0:03:53.6]} 20. Ndf5 {[%clk 0:03:08.7]} 20... Nxf5 {[%clk
0:03:51.1]} 21. Bxf5 {[%clk 0:03:05.8]} 21... Bxf5 {[%clk 0:03:49.5]} 22. Rxd8
{[%clk 0:03:04.2]} 1-0

[Event "Live Chess"]
[Site "Chess.com"]
[Date "2024.06.01"]
[Round "-"]
[White "Dhaydon19"]
[Black "CheckThis4"]
[Result "1/2-1/2"]
[WhiteElo "2709"]
[BlackElo "2692"]
[TimeControl "300"]
[EndTime "9:22:07 PDT"]
[Termination "Game drawn by agreement"]

1. d4 {[%clk 0:04:58.3]} 1... e6 {[%clk 0:04:56.8]} 2. Nf3 {[%clk 0:04:57.4]}
2... f5 {[%clk 0:04:55.3]} 3. g3 {[%clk 0:04:56.8]} 3... Nf6 {[%clk 0:04:54]} 4.
Bg2 {[%clk 0:04:56.5]} 4... Be7 {[%clk 0:04:53.3]} 5. c4 {[%clk 0:04:55.8]} 5...
O-O {[%clk 0:04:52]} 6. O-O {[%clk 0:04:55]} 6... d6 {[%clk 0:04:51.2]} 7. Nc3
{[%clk 0:04:54.6]} 7... Ne4 {[%clk 0:04:49.9]} 8. Qc2 {[%clk 0:04:53.4]} 8...
Nxc3 {[%clk 0:04:48.2]} 9. Qxc3 {[%clk 0:04:52.5]} 9... a5 {[%clk 0:04:46.7]}
10. b3 {[%clk 0:04:51.4]} 10... Nc6 {[%clk 0:04:45.1]} 11. Bb2 {[%clk
0:04:49.2]} 11... Bf6 {[%clk 0:04:43.2]} 12. Qd2 {[%clk 0:04:47.2]} 12... Qe8
{[%clk 0:04:41.7]} 13. d5 {[%clk 0:04:42.3]} 13... exd5 {[%clk 0:04:32.4]} 14.
Bxf6 {[%clk 0:04:38.9]} 14... Rxf6 {[%clk 0:04:29.6]} 15. cxd5 {[%clk
0:04:34.7]} 15... Ne5 {[%clk 0:04:26.1]} 16. Nd4 {[%clk 0:04:34]} 16... Bd7
{[%clk 0:04:12.7]} 17. Rac1 {[%clk 0:04:31.9]} 17... c5 {[%clk 0:03:48.3]} 18.
dxc6 {[%clk 0:04:29.5]} 18... bxc6 {[%clk 0:03:47]} 19. Rfd1 {[%clk 0:04:27.3]}
19... Rc8 {[%clk 0:03:41.3]} 20. Qxa5 {[%clk 0:04:23.6]} 20... f4 {[%clk
0:03:30.8]} 21. Nf3 {[%clk 0:04:20.1]} 21... fxg3 {[%clk 0:03:20.6]} 22. hxg3
{[%clk 0:04:18.6]} 22... Ng4 {[%clk 0:03:08]} 23. Rd2 {[%clk 0:04:08.2]} 23...
d5 {[%clk 0:03:00.6]} 24. Qc5 {[%clk 0:04:01.4]} 24... Qh5 {[%clk 0:02:56.1]}
1/2-1/2

[Event "Live Chess"]
[Site "Chess.com"]
[Date "2024.06.01"]
[Round "-"]
[White "Cruiseylee78"]
[Black "Tatarinov_Maxim"]
[Result "0-1"]
[WhiteElo "1661"]
[BlackElo "2275"]
[TimeControl "300"]
[EndTime "9:22:11 PDT"]
[Termination "Tatarinov_Maxim won by resignation"]

1. d4 {[%clk 0:04:58.6]} 1... Nf6 {[%clk 0:04:57.7]} 2. Bf4 {[%clk 0:04:57.9]}
2... g6 {[%clk 0:04:53.6]} 3. e3 {[%clk 0:04:57.2]} 3... Bg7 {[%clk 0:04:52.7]}
4. Bd3 {[%clk 0:04:56.4]} 4... O-O {[%clk 0:04:52.2]} 5. Nf3 {[%clk 0:04:55.7]}
5... d6 {[%clk 0:04:50.8]} 6. c3 {[%clk 0:04:55.1]} 6... b6 {[%clk 0:04:49.5]}
7. Nbd2 {[%clk 0:04:54.4]} 7... Bb7 {[%clk 0:04:48.9]} 8. Qc2 {[%clk 0:04:53.7]}
8... c5 {[%clk 0:04:47.4]} 9. h4 {[%clk 0:04:45.2]} 9... Nc6 {[%clk 0:04:45.4]}
10. Rg1 {[%clk 0:04:44.3]} 10... Rc8 {[%clk 0:04:44.2]} 11. g4 {[%clk
0:04:42.6]} 11... cxd4 {[%clk 0:04:43.6]} 12. exd4 {[%clk 0:04:41.9]} 12... Nb4
{[%clk 0:04:42.6]} 13. Qb1 {[%clk 0:04:40.3]} 13... Nxd3+ {[%clk 0:04:41.4]} 14.
Qxd3 {[%clk 0:04:39.8]} 14... Nd5 {[%clk 0:04:26.1]} 15. Bg5 {[%clk 0:04:30.9]}
15... h6 {[%clk 0:04:22.2]} 16. Be3 {[%clk 0:04:28.2]} 16... e5 {[%clk
0:04:20.1]} 17. O-O-O {[%clk 0:04:08.9]} 17... Nxe3 {[%clk 0:04:05.9]} 18. fxe3
{[%clk 0:04:06.6]} 18... Re8 {[%clk 0:03:59.9]} 19. e4 {[%clk 0:04:01.1]} 19...
exd4 {[%clk 0:03:58.6]} 20. Nxd4 {[%clk 0:03:58.1]} 20... Qxh4 {[%clk
0:03:55.1]} 21. Rh1 {[%clk 0:03:46.1]} 21... Qe7 {[%clk 0:03:53.2]} 22. Rdg1
{[%clk 0:03:42.8]} 22... Bxe4 {[%clk 0:03:49.3]} 23. Nxe4 {[%clk 0:03:37]} 23...
Qxe4 {[%clk 0:03:49.2]} 24. Qh3 {[%clk 0:03:27]} 0-1

[Event "Live Chess"]
[Site "Chess.com"]
[Date "2024.06.01"]
[Round "-"]
[White "Trendle"]
[Black "ACM42"]
[Result "1-0"]
[WhiteElo "2623"]
[BlackElo "2211"]
[TimeControl "300"]
[EndTime "9:22:15 PDT"]
[Termination "Trendle won by resignation"]

1. d4 {[%clk 0:04:54.3]} 1... Nf6 {[%clk 0:04:58.8]} 2. c4 {[%clk 0:04:53.2]}
2... g6 {[%clk 0:04:58]} 3. Nc3 {[%clk 0:04:50.5]} 3... Bg7 {[%clk 0:04:57.3]}
4. Nf3 {[%clk 0:04:49.2]} 4... O-O {[%clk 0:04:56.3]} 5. Bf4 {[%clk 0:04:47.7]}
5... d6 {[%clk 0:04:53]} 6. h3 {[%clk 0:04:45.3]} 6... b6 {[%clk 0:04:52]} 7. e3
{[%clk 0:04:44.3]} 7... Bb7 {[%clk 0:04:51.4]} 8. Bh2 {[%clk 0:04:41.7]} 8... a5
{[%clk 0:04:50.7]} 9. Be2 {[%clk 0:04:40.6]} 9... Nbd7 {[%clk 0:04:47.7]} 10.
O-O {[%clk 0:04:39.8]} 10... Re8 {[%clk 0:04:46.7]} 11. Rc1 {[%clk 0:04:37.7]}
11... e5 {[%clk 0:04:46]} 12. a3 {[%clk 0:04:27.7]} 12... Ne4 {[%clk 0:04:36.1]}
13. Nxe4 {[%clk 0:04:23.3]} 13... Bxe4 {[%clk 0:04:34.2]} 14. b4 {[%clk
0:04:08.6]} 14... f5 {[%clk 0:04:08]} 15. c5 {[%clk 0:03:52.1]} 15... axb4
{[%clk 0:03:39.9]} 16. axb4 {[%clk 0:03:42.4]} 16... Qe7 {[%clk 0:03:09.5]} 17.
Qb3+ {[%clk 0:03:33.6]} 17... d5 {[%clk 0:02:54.9]} 18. c6 {[%clk 0:03:28.7]}
18... Nf8 {[%clk 0:02:38.1]} 19. Nxe5 {[%clk 0:03:15.5]} 19... Qg5 {[%clk
0:02:00.9]} 20. f3 {[%clk 0:03:09.6]} 1-0

[Event "Live Chess"]
[Site "Chess.com"]
[Date "2024.06.01"]
[Round "-"]
[White "MovebyMove"]
[Black "ihtiandr82"]
[Result "1-0"]
[WhiteElo "2445"]
[BlackElo "1517"]
[TimeControl "300"]
[EndTime "9:22:19 PDT"]
[Termination "MovebyMove won by resignation"]

1. e4 {[%clk 0:04:50.6]} 1... c5 {[%clk 0:04:52.2]} 2. Nf3 {[%clk 0:04:45.8]}
2... Nc6 {[%clk 0:04:51.5]} 3. Nc3 {[%clk 0:04:39.2]} 3... e6 {[%clk 0:04:49.7]}
4. d4 {[%clk 0:04:35.3]} 4... cxd4 {[%clk 0:04:49.6]} 5. Nxd4 {[%clk 0:04:34.1]}
5... Bb4 {[%clk 0:04:48.5]} 6. Nb5 {[%clk 0:04:30.8]} 6... Nf6 {[%clk
0:04:45.3]} 7. a3 {[%clk 0:04:27]} 7... Bxc3+ {[%clk 0:04:37.7]} 8. Nxc3 {[%clk
0:04:25.4]} 8... O-O {[%clk 0:04:34.8]} 9. Bd3 {[%clk 0:04:18.9]} 9... d5 {[%clk
0:04:33.5]} 10. exd5 {[%clk 0:04:17.6]} 10... Nxd5 {[%clk 0:04:32]} 11. Bd2
{[%clk 0:04:14.5]} 11... Ne5 {[%clk 0:04:18.4]} 12. Be2 {[%clk 0:04:09.5]} 12...
b6 {[%clk 0:04:05.4]} 13. O-O {[%clk 0:03:57.3]} 13... Bb7 {[%clk 0:04:03.9]}
14. f3 {[%clk 0:03:50.9]} 14... Qe7 {[%clk 0:03:57.8]} 15. Nxd5 {[%clk
0:03:46.1]} 15... Bxd5 {[%clk 0:03:55.4]} 16. Bc3 {[%clk 0:03:44.2]} 16... Ng6
{[%clk 0:03:48.6]} 17. Qd4 {[%clk 0:03:26.2]} 17... f6 {[%clk 0:03:38.2]} 18.
Rfe1 {[%clk 0:03:20.1]} 18... Rac8 {[%clk 0:03:36]} 19. Rad1 {[%clk 0:03:14]}
19... Rfd8 {[%clk 0:03:34]} 20. Qe3 {[%clk 0:03:08.5]} 20... e5 {[%clk
0:03:20.7]} 21. Ba6 {[%clk 0:02:57.8]} 21... Rc7 {[%clk 0:02:59.2]} 22. Bb4
{[%clk 0:02:53.1]} 22... Qf7 {[%clk 0:02:50]} 23. c4 {[%clk 0:02:46.6]} 1-0

[Event "Live Chess"]
[Site "Chess.com"]
[Date "2024.06.01"]
[Round "-"]
[White "Queensandpawns"]
[Black "StoreySniper"]
[Result "0-1"]
[WhiteElo "2454"]
[BlackElo "2534"]
[TimeControl "300"]
[EndTime "9:22:23 PDT"]
[Termination "StoreySniper won by resignation"]

1. e4 {[%clk 0:04:58.6]} 1... g6 {[%clk 0:04:59.3]} 2. d4 {[%clk 0:04:57.5]}
2... Bg7 {[%clk 0:04:59]} 3. Nc3 {[%clk 0:04:56.3]} 3... c5 {[%clk 0:04:58.6]}
4. dxc5 {[%clk 0:04:54.6]} 4... Bxc3+ {[%clk 0:04:57.3]} 5. bxc3 {[%clk
0:04:54.5]} 5... Nf6 {[%clk 0:04:56.4]} 6. e5 {[%clk 0:04:53.3]} 6... Ne4 {[%clk
0:04:55.5]} 7. Qd4 {[%clk 0:04:51.8]} 7... Qa5 {[%clk 0:04:53.4]} 8. Qb4 {[%clk
0:04:48.3]} 8... Qxc5 {[%clk 0:04:50.3]} 9. Qxc5 {[%clk 0:04:46.8]} 9... Nxc5
{[%clk 0:04:49.5]} 10. Nf3 {[%clk 0:04:45.4]} 10... Nc6 {[%clk 0:04:48.8]} 11.
Bc4 {[%clk 0:04:44.1]} 11... b6 {[%clk 0:04:47.1]} 12. O-O {[%clk 0:04:43.3]}
12... Ba6 {[%clk 0:04:45.7]} 13. Bxa6 {[%clk 0:04:41.6]} 13... Nxa6 {[%clk
0:04:45.6]} 14. Bf4 {[%clk 0:04:40.2]} 14... Rc8 {[%clk 0:04:42.7]} 15. Rfd1
{[%clk 0:04:38.8]} 15... Na5 {[%clk 0:04:39.6]} 16. Rd3 {[%clk 0:04:35]} 16...
Nc5 {[%clk 0:04:38.2]} 17. Rd5 {[%clk 0:04:28.6]} 17... Ne6 {[%clk 0:04:33.6]}
18. Bd2 {[%clk 0:04:27.9]} 18... Nc4 {[%clk 0:04:25.5]} 19. Be1 {[%clk
0:04:27.1]} 19... Nf4 {[%clk 0:04:15.7]} 20. Rdd1 {[%clk 0:04:21.1]} 20... Rc7
{[%clk 0:03:49.2]} 21. g3 {[%clk 0:04:19]} 21... Ne6 {[%clk 0:03:46.6]} 22. Rd5
{[%clk 0:04:16.5]} 22... Rc5 {[%clk 0:03:35.9]} 23. Rad1 {[%clk 0:04:11]} 23...
Rxd5 {[%clk 0:03:35.1]} 24. Rxd5 {[%clk 0:04:10.9]} 24... Kd8 {[%clk 0:03:30.4]}
25. Nd4 {[%clk 0:04:06.4]} 25... Nxd4 {[%clk 0:03:18]} 26. Rxd4 {[%clk
0:03:44.6]} 26... Nxe5 {[%clk 0:03:16.5]} 27. c4 {[%clk 0:03:40]} 27... Nf3+
{[%clk 0:03:15.4]} 0-1

[Event "Live Chess"]
[Site "Chess.com"]
[Date "2024.06.01"]
[Round "-"]
[White "DJ_Lambton"]
[Black "Grace6363"]
[Result "1-0"]
[WhiteElo "1740"]
[BlackElo "1123"]
[TimeControl "300"]
[EndTime "9:22:42 PDT"]
[Termination "DJ_Lambton won on time"]

1. c4 {[%clk 0:04:57.5]} 1... c5 {[%clk 0:04:57.8]} 2. g3 {[%clk 0:04:56.9]}
2... Nc6 {[%clk 0:04:55.6]} 3. Bg2 {[%clk 0:04:56.3]} 3... Nf6 {[%clk
0:04:54.6]} 4. Nc3 {[%clk 0:04:55.6]} 4... e6 {[%clk 0:04:48]} 5. e3 {[%clk
0:04:54.8]} 5... d5 {[%clk 0:04:40.2]} 6. cxd5 {[%clk 0:04:53.8]} 6... exd5
{[%clk 0:04:39.3]} 7. Nge2 {[%clk 0:04:53.2]} 7... Qc7 {[%clk 0:04:31.6]} 8. d4
{[%clk 0:04:50.7]} 8... Be6 {[%clk 0:04:23.9]} 9. O-O {[%clk 0:04:49.2]} 9... c4
{[%clk 0:04:21.8]} 10. b3 {[%clk 0:04:47.9]} 10... b5 {[%clk 0:04:19.1]} 11. Bb2
{[%clk 0:04:46.9]} 11... a6 {[%clk 0:04:17.4]} 12. Nf4 {[%clk 0:04:42.9]} 12...
Rd8 {[%clk 0:04:07.3]} 13. Nxe6 {[%clk 0:04:39.4]} 13... fxe6 {[%clk 0:04:06.1]}
14. Re1 {[%clk 0:04:35.7]} 14... Be7 {[%clk 0:03:56.5]} 15. e4 {[%clk 0:04:35]}
15... dxe4 {[%clk 0:03:46.6]} 16. Nxe4 {[%clk 0:04:34.9]} 16... O-O {[%clk
0:03:35]} 17. Nxf6+ {[%clk 0:04:32.3]} 17... Bxf6 {[%clk 0:03:32.2]} 18. Rxe6
{[%clk 0:04:31.7]} 18... Bxd4 {[%clk 0:03:11]} 19. Bxd4 {[%clk 0:04:28.9]} 19...
Rxd4 {[%clk 0:03:06.8]} 20. Qe2 {[%clk 0:04:22.4]} 20... Rd6 {[%clk 0:02:38.1]}
21. Bxc6 {[%clk 0:04:16.2]} 21... Rxc6 {[%clk 0:02:35.1]} 22. Re7 {[%clk
0:04:15.5]} 22... Qd6 {[%clk 0:02:17.6]} 23. Re1 {[%clk 0:04:13.6]} 23... Qf6
{[%clk 0:02:07.5]} 24. Re8 {[%clk 0:04:04.1]} 24... Rc8 {[%clk 0:01:54.3]} 25.
Qe6+ {[%clk 0:03:54.5]} 25... Qxe6 {[%clk 0:01:45.7]} 26. R8xe6 {[%clk
0:03:54.4]} 26... c3 {[%clk 0:01:38.8]} 27. Rc1 {[%clk 0:03:49.3]} 27... c2
{[%clk 0:01:37.4]} 28. Re2 {[%clk 0:03:46.5]} 28... Rfe8 {[%clk 0:01:29]} 29.
Rcxc2 {[%clk 0:03:44]} 29... Rxe2 {[%clk 0:01:26.3]} 30. Rxe2 {[%clk 0:03:43.1]}
30... Rc1+ {[%clk 0:01:25.3]} 31. Kg2 {[%clk 0:03:42]} 31... Ra1 {[%clk
0:01:16.6]} 32. h4 {[%clk 0:03:40.4]} 32... a5 {[%clk 0:01:15]} 33. Kf3 {[%clk
0:03:39.2]} 33... a4 {[%clk 0:01:12.8]} 34. Rb2 {[%clk 0:03:37.6]} 34... axb3
{[%clk 0:01:07.1]} 35. Rxb3 {[%clk 0:03:34.5]} 35... Rxa2 {[%clk 0:01:04.3]} 36.
Rxb5 {[%clk 0:03:33.8]} 36... Ra3+ {[%clk 0:01:03.4]} 37. Kg4 {[%clk 0:03:31.3]}
37... h6 {[%clk 0:00:56.1]} 38. Rb7 {[%clk 0:03:28.7]} 38... Ra5 {[%clk
0:00:51.7]} 39. f4 {[%clk 0:03:27.3]} 39... Kh7 {[%clk 0:00:47.9]} 40. f5 {[%clk
0:03:24.5]} 40... h5+ {[%clk 0:00:41.1]} 41. Kg5 {[%clk 0:03:20]} 41... Rd5
{[%clk 0:00:34]} 42. Kf4 {[%clk 0:03:07.4]} 42... Kh6 {[%clk 0:00:29.4]} 43.
Rb6+ {[%clk 0:03:04.8]} 43... Kh7 {[%clk 0:00:28.2]} 44. Re6 {[%clk 0:03:00.9]}
44... Rc5 {[%clk 0:00:19.5]} 45. Re5 {[%clk 0:02:59]} 45... Rc6 {[%clk
0:00:17.8]} 46. Kg5 {[%clk 0:02:58.3]} 46... Kg8 {[%clk 0:00:14.1]} 47. Kxh5
{[%clk 0:02:56.1]} 47... Rh6+ {[%clk 0:00:12.2]} 48. Kg5 {[%clk 0:02:55.3]}
48... Rf6 {[%clk 0:00:10.5]} 49. g4 {[%clk 0:02:54.4]} 49... Kf7 {[%clk
0:00:08.7]} 50. Re6 {[%clk 0:02:52.9]} 50... Rxe6 {[%clk 0:00:06.1]} 51. fxe6+
{[%clk 0:02:52.8]} 51... Ke7 {[%clk 0:00:05.6]} 52. Kg6 {[%clk 0:02:52.6]} 52...
Kxe6 {[%clk 0:00:04.8]} 53. Kxg7 {[%clk 0:02:52.2]} 53... Ke7 {[%clk 0:00:04.2]}
54. h5 {[%clk 0:02:52.1]} 54... Ke6 {[%clk 0:00:02.8]} 55. h6 {[%clk 0:02:52]}
55... Ke5 {[%clk 0:00:01.7]} 56. h7 {[%clk 0:02:51.9]} 56... Ke4 {[%clk
0:00:01]} 57. h8=Q {[%clk 0:02:51.8]} 57... Kf3 {[%clk 0:00:00.2]} 58. Qf8+
{[%clk 0:02:51.7]} 1-0

[Event "Live Chess"]
[Site "Chess.com"]
[Date "2024.06.01"]
[Round "-"]
[White "Tilbs_12"]
[Black "MellowAesthetic"]
[Result "0-1"]
[WhiteElo "1661"]
[BlackElo "2070"]
[TimeControl "300"]
[EndTime "9:22:45 PDT"]
[Termination "MellowAesthetic won by resignation"]

1. d4 {[%clk 0:04:55.8]} 1... Nf6 {[%clk 0:04:58.4]} 2. Nc3 {[%clk 0:04:53.6]}
2... d5 {[%clk 0:04:56.9]} 3. Bf4 {[%clk 0:04:52.5]} 3... c5 {[%clk 0:04:50.6]}
4. e3 {[%clk 0:04:49.4]} 4... a6 {[%clk 0:04:38.7]} 5. Nf3 {[%clk 0:04:46.7]}
5... Nc6 {[%clk 0:04:35.9]} 6. Be2 {[%clk 0:04:39.6]} 6... Bf5 {[%clk
0:04:30.3]} 7. O-O {[%clk 0:04:31]} 7... e6 {[%clk 0:04:29]} 8. Ne5 {[%clk
0:04:28.7]} 8... Bd6 {[%clk 0:03:51.4]} 9. Bg4 {[%clk 0:04:15.4]} 9... Bxe5
{[%clk 0:03:36]} 10. Bxf5 {[%clk 0:04:12.5]} 10... Bxf4 {[%clk 0:03:34.7]} 11.
exf4 {[%clk 0:04:09.1]} 11... exf5 {[%clk 0:03:33.7]} 12. Re1+ {[%clk
0:04:04.5]} 12... Ne7 {[%clk 0:03:18.7]} 13. dxc5 {[%clk 0:04:01.9]} 13... O-O
{[%clk 0:03:17.7]} 14. Qf3 {[%clk 0:03:52.4]} 14... Ne4 {[%clk 0:03:14.5]} 15.
Rad1 {[%clk 0:03:46.2]} 15... Qa5 {[%clk 0:03:05.5]} 16. Nxd5 {[%clk 0:03:39.2]}
16... Nxd5 {[%clk 0:03:04.4]} 0-1